fUST/lending_fUST_20250121
["ID","MTS","AMOUNT","RATE_DAILY","PERIOD"]
[349807235,1737438638527,-11.51806822,0.00021917,3]
[349807237,1737438638539,-488.59193178,0.00021917,3]
[349807239,1737438638549,-500.0,0.00021917,3]
[349807241,1737438638560,-500.0,0.00021917,3]
[349807243,1737438638569,-190.11497126,0.00021917,3]
[349807245,1737438638581,-309.88502874,0.00021917,3]
[349807247,1737438638590,-500.0,0.00021917,3]
[349807249,1737438638600,-500.0,0.00021917,3]
[349807251,1737438638610,-500.0,0.00021917,3]
[349807252,1737438638619,-500.0,0.00021917,3]
[349807253,1737438638629,-500.0,0.00021917,3]
[349807254,1737438638638,-500.0,0.00021917,3]
[349807256,1737438638648,-501.69453166,0.00021917,3]
[349807257,1737438638658,-500.0,0.00021917,3]
[349807278,1737438638874,-500.0,0.00021917,3]
[349807280,1737438638884,-500.0,0.00021917,3]
[349807282,1737438638894,-500.0,0.00021917,3]
[349807284,1737438638903,-500.0,0.00021917,3]
[349807286,1737438638913,-500.0,0.00021917,3]
[349807288,1737438638923,-505.59250195,0.00021917,3]
[349807290,1737438638932,-500.0,0.00021917,3]
[349807292,1737438638941,-500.0,0.00021917,3]
[349807294,1737438638951,-500.0,0.00021917,3]
[349807296,1737438638961,-500.0,0.00021917,3]
[349807298,1737438638970,-500.0,0.00021917,3]
[349807300,1737438638981,-500.0,0.00021917,3]
[349807302,1737438638991,-420.17864886,0.00021917,3]
[349807304,1737438639000,-500.0,0.00021917,3]
[349807306,1737438639009,-500.0,0.00021917,3]
[349807308,1737438639019,-500.0,0.00021917,3]
[349807310,1737438639028,-500.0,0.00021917,3]
[349807312,1737438639037,-500.0,0.00021917,3]
[349807314,1737438639047,-500.0,0.00021917,3]
[349807316,1737438639056,-500.0,0.00021917,3]
[349807318,1737438639066,-507.72279973,0.00021917,3]
[349807320,1737438639075,-377.37174248,0.00021917,3]
[349807322,1737438639087,-484.12787526,0.00021917,3]
[349807324,1737438639098,-175.86754532,0.00021917,3]
[349807486,1737438640608,-336.64245468,0.00021917,3]
[349807488,1737438640618,-131.73854432,0.00021917,3]
[349807490,1737438640630,-381.99,0.00021917,3]
[349807495,1737438640667,-80.02145568,0.00021917,3]
[349807497,1737438640677,-599.25,0.00021917,3]
[349807499,1737438640687,-500.0,0.00021917,3]
[349807501,1737438640697,-500.0,0.00021917,3]
[349807503,1737438640706,-500.0,0.00021917,3]
[349807505,1737438640716,-500.0,0.00021917,3]
[349807507,1737438640726,-500.0,0.00021917,3]
[349807509,1737438640735,-500.0,0.00021917,3]
[349807511,1737438640745,-500.0,0.00021917,3]
[349807513,1737438640755,-500.0,0.00021917,3]
[349807515,1737438640764,-500.0,0.00021917,3]
[349807517,1737438640773,-500.71619713,0.00021917,3]
[349807520,1737438640783,-516.13,0.00021917,3]
[349807522,1737438640793,-500.0,0.00021917,3]
[349807524,1737438640802,-500.0,0.00021917,3]
[349807526,1737438640811,-500.0,0.00021917,3]
[349807528,1737438640821,-188.0,0.00021917,2]
[349807530,1737438640830,-1058.17,0.00021917,3]
[349807532,1737438640840,-500.0,0.00021917,3]
[349807534,1737438640849,-500.0,0.00021917,3]
[349807536,1737438640859,-500.0,0.00021917,3]
[349807538,1737438640868,-500.0,0.00021917,3]
[349807540,1737438640880,-500.0,0.00021917,3]
[349807542,1737438640889,-500.0,0.00021917,3]
[349807544,1737438640899,-526.72,0.00021917,3]
[349807546,1737438640908,-500.0,0.00021917,3]
[349807548,1737438640917,-500.0,0.00021917,3]
[349807550,1737438640927,-732.99,0.00021917,3]
[349807552,1737438640936,-505.14001361,0.00021917,3]
[349807554,1737438640946,-530.4208918,0.00021917,3]
[349807556,1737438640956,-500.0,0.00021917,3]
[349807558,1737438640966,-500.0,0.00021917,3]
[349807560,1737438640976,-500.0,0.00021917,3]
[349807562,1737438640986,-500.0,0.00021917,3]
[349807564,1737438640995,-478.43558541,0.00021917,3]
[349807566,1737438641005,-511.59,0.00021917,3]
[349807568,1737438641015,-1091.05,0.00021917,3]
[349807570,1737438641024,-500.0,0.00021917,3]
[349807572,1737438641034,-501.07226792,0.00021917,3]
[349807574,1737438641044,-700.84,0.00021917,3]
[349807576,1737438641053,-500.0,0.00021917,3]
[349807578,1737438641062,-509.0655691,0.00021917,3]
[349807580,1737438641071,-500.0,0.00021917,3]
[349807582,1737438641081,-500.0,0.00021917,3]
[349807584,1737438641090,-500.0,0.00021917,3]
[349807586,1737438641100,-500.0,0.00021917,3]
[349807588,1737438641109,-500.0,0.00021917,3]
[349807590,1737438641119,-500.0,0.00021917,3]
[349807592,1737438641128,-500.0,0.00021917,3]
[349807594,1737438641138,-500.0,0.00021917,3]
[349807596,1737438641148,-500.0,0.00021917,3]
[349807598,1737438641158,-501.3537956,0.00021917,2]
[349807600,1737438641170,-1043.23,0.00021917,3]
[349807602,1737438641180,-500.0,0.00021917,3]
[349807604,1737438641190,-500.0,0.00021917,3]
[349807606,1737438641199,-500.0,0.00021917,3]
[349807608,1737438641209,-500.0,0.00021917,3]
[349807610,1737438641220,-500.0,0.00021917,3]
[349807612,1737438641230,-500.0,0.00021917,3]
[349807614,1737438641239,-655.4,0.00021917,3]
[349807616,1737438641250,-500.0,0.00021917,3]
[349807618,1737438641260,-500.0,0.00021917,3]
[349807620,1737438641269,-500.0,0.00021917,3]
[349807622,1737438641278,-500.0,0.00021917,3]
[349807624,1737438641287,-500.0,0.00021917,3]
[349807626,1737438641297,-500.0,0.00021917,3]
[349807628,1737438641306,-500.0,0.00021917,3]
[349807630,1737438641316,-500.0,0.00021917,3]
[349807632,1737438641325,-500.0,0.00021917,3]
[349807634,1737438641334,-500.0,0.00021917,3]
[349807636,1737438641345,-500.0,0.00021917,3]
[349807638,1737438641355,-500.0,0.00021917,3]
[349807641,1737438641369,-500.0,0.00021917,3]
[349807643,1737438641379,-500.0,0.00021917,3]
[349807645,1737438641388,-500.0,0.00021917,3]
[349807647,1737438641398,-500.0,0.00021917,3]
[349807649,1737438641407,-500.0,0.00021917,3]
[349807651,1737438641417,-500.0,0.00021917,3]
[349807653,1737438641426,-500.0,0.00021917,3]
[349807655,1737438641435,-500.0,0.00021917,3]
[349807657,1737438641446,-500.0,0.00021917,3]
[349807659,1737438641456,-768.19,0.00021917,3]
[349807661,1737438641466,-500.0,0.00021917,3]
[349807663,1737438641476,-500.0,0.00021917,3]
[349807665,1737438641488,-500.0,0.00021917,3]
[349807667,1737438641497,-500.0,0.00021917,3]
[349807669,1737438641507,-500.0,0.00021917,3]
[349807671,1737438641516,-705.02,0.00021917,3]
[349807673,1737438641527,-500.0,0.00021917,3]
[349807675,1737438641536,-500.0,0.00021917,3]
[349807677,1737438641545,-537.21,0.00021917,3]
[349807679,1737438641557,-474.95135462,0.00021917,3]
[349807681,1737438641572,-25.04864538,0.00021917,3]
[349807683,1737438641581,-395.61288398,0.00021917,3]
[349807933,1737438643585,-314.19169592,0.00021797,6]
[349807935,1737438643595,-1069.85,0.000219,2]
[349807937,1737438643605,-104.38711602,0.00021917,3]
[349807939,1737438643615,-500.0,0.00021917,3]
[349807941,1737438643624,-500.0,0.00021917,3]
[349807943,1737438643635,-500.0,0.00021917,3]
[349807945,1737438643645,-500.0,0.00021917,3]
[349807947,1737438643655,-500.0,0.00021917,3]
[349807949,1737438643664,-500.0,0.00021917,3]
[349807951,1737438643674,-500.0,0.00021917,3]
[349807953,1737438643684,-500.0,0.00021917,3]
[349807955,1737438643694,-500.0,0.00021917,3]
[349807957,1737438643703,-500.0,0.00021917,3]
[349807959,1737438643713,-500.0,0.00021917,3]
[349807961,1737438643722,-500.0,0.00021917,3]
[349807963,1737438643731,-500.0,0.00021917,3]
[349807965,1737438643740,-500.0,0.00021917,3]
[349807967,1737438643750,-974.61,0.00021917,2]
[349807969,1737438643759,-500.0,0.00021917,3]
[349807971,1737438643769,-500.0,0.00021917,3]
[349807973,1737438643778,-500.0,0.00021917,3]
[349807975,1737438643787,-500.0,0.00021917,3]
[349807977,1737438643797,-500.0,0.00021917,3]
[349807979,1737438643806,-500.0,0.00021917,3]
[349807981,1737438643815,-500.0,0.00021917,3]
[349807983,1737438643826,-500.0,0.00021917,3]
[349807985,1737438643835,-3629.41,0.00021917,3]
[349807987,1737438643845,-500.0,0.00021917,3]
[349807989,1737438643855,-560.06,0.00021917,3]
[349807991,1737438643864,-500.0,0.00021917,3]
[349807993,1737438643874,-500.0,0.00021917,3]
[349807995,1737438643885,-500.0,0.00021917,3]
[349807997,1737438643895,-585.37,0.00021917,3]
[349807999,1737438643905,-500.0,0.00021917,3]
[349808001,1737438643914,-546.52,0.00021917,3]
[349808003,1737438643924,-883.23,0.00021917,3]
[349808005,1737438643934,-500.0,0.00021917,3]
[349808007,1737438643944,-513.41654229,0.00021917,3]
[349808009,1737438643954,-1472.37,0.00021917,3]
[349808011,1737438643963,-500.0,0.00021917,3]
[349808013,1737438643973,-373.03284139,0.00021917,3]
[349808015,1737438643983,-500.0,0.00021917,3]
[349808017,1737438643993,-500.0,0.00021917,3]
[349808019,1737438644003,-500.0,0.00021917,3]
[349808021,1737438644012,-500.0,0.00021917,3]
[349808023,1737438644022,-500.0,0.00021917,3]
[349808025,1737438644031,-500.0,0.00021917,3]
[349808027,1737438644041,-505.33301679,0.00021917,3]
[349808029,1737438644051,-500.0,0.00021917,3]
[349808031,1737438644060,-508.8,0.00021917,3]
[349808033,1737438644070,-6376.57,0.00021917,3]
[349808035,1737438644080,-500.0,0.00021917,3]
[349808037,1737438644091,-1041.48,0.00021917,3]
[349808039,1737438644100,-500.0,0.00021917,3]
[349808041,1737438644110,-500.0,0.00021917,3]
[349808043,1737438644119,-500.0,0.00021917,3]
[349808045,1737438644131,-22088.22,0.00021917,3]
[349808047,1737438644141,-500.0,0.00021917,3]
[349808048,1737438644150,-500.0,0.00021917,3]
[349808050,1737438644161,-500.0,0.00021917,3]
[349808052,1737438644171,-500.0,0.00021917,3]
[349808054,1737438644181,-651.21,0.00021917,3]
[349808055,1737438644192,-500.0,0.00021917,3]
[349808056,1737438644203,-500.0,0.00021917,3]
[349808057,1737438644212,-680.79,0.00021917,3]
[349808058,1737438644222,-2664.01,0.00021917,3]
[349808059,1737438644232,-1161.1,0.00021917,3]
[349808060,1737438644242,-500.0,0.00021917,3]
[349808061,1737438644251,-1447.34,0.00021917,3]
[349808063,1737438644260,-500.0,0.00021917,3]
[349808065,1737438644270,-623.21139055,0.00021917,3]
[349808067,1737438644279,-500.0,0.00021917,3]
[349808069,1737438644289,-3346.95,0.00021917,3]
[349808071,1737438644299,-523.19,0.00021917,3]
[349808072,1737438644308,-500.0,0.00021917,3]
[349808073,1737438644317,-500.0,0.00021917,3]
[349808074,1737438644327,-500.0,0.00021917,3]
[349808075,1737438644336,-1193.65,0.00021917,3]
[349808076,1737438644346,-500.0,0.00021917,3]
[349808077,1737438644355,-500.0,0.00021917,3]
[349808078,1737438644365,-500.0,0.00021917,3]
[349808079,1737438644374,-500.0,0.00021917,3]
[349808080,1737438644386,-500.0,0.00021917,3]
[349808081,1737438644395,-500.0,0.00021917,3]
[349808082,1737438644405,-500.0,0.00021917,3]
[349808083,1737438644414,-500.0,0.00021917,3]
[349808084,1737438644424,-500.0,0.00021917,3]
[349808085,1737438644433,-523.0,0.00021917,3]
[349808086,1737438644443,-1056.76,0.00021917,3]
[349808088,1737438644453,-541.25,0.00021917,3]
[349808090,1737438644463,-500.0,0.00021917,3]
[349808092,1737438644472,-672.3,0.00021917,3]
[349808094,1737438644483,-9213.54,0.00021917,3]
[349808095,1737438644494,-500.0,0.00021917,3]
[349808097,1737438644503,-500.0,0.00021917,3]
[349808099,1737438644513,-500.0,0.00021917,3]
[349808100,1737438644522,-500.0,0.00021917,3]
[349808101,1737438644533,-500.0,0.00021917,3]
[349808102,1737438644542,-2180.68,0.00021917,3]
[349808103,1737438644552,-500.0,0.00021917,3]
[349808104,1737438644562,-500.0,0.00021917,3]
[349808105,1737438644573,-1126.87,0.00021917,3]
[349808106,1737438644582,-455.56552258,0.00021917,3]
[349808107,1737438644593,-567.37,0.00021917,3]
[349808108,1737438644603,-500.0,0.00021917,3]
[349808109,1737438644613,-500.0,0.00021917,3]
[349808110,1737438644623,-500.0,0.00021917,3]
[349808111,1737438644636,-2800.02,0.00021917,3]
[349808112,1737438644647,-678.7,0.00021917,3]
[349808113,1737438644657,-1059.49,0.00021917,3]
[349808114,1737438644668,-2397.9,0.00021917,3]
[349808115,1737438644678,-3268.55,0.00021917,3]
[349808116,1737438644689,-653.85,0.00021917,3]
[349808117,1737438644700,-5880.2,0.00021917,3]
[349808118,1737438644710,-503.55391618,0.00021917,3]
[349808119,1737438644720,-500.0,0.00021917,3]
[349808120,1737438644730,-500.0,0.00021917,3]
[349808121,1737438644741,-500.0,0.00021917,3]
[349808122,1737438644751,-500.0,0.00021917,3]
[349808123,1737438644761,-1370.28,0.00021917,3]
[349808124,1737438644771,-500.0,0.00021917,3]
[349808125,1737438644780,-500.0,0.00021917,3]
[349808126,1737438644790,-500.0,0.00021917,3]
[349808127,1737438644799,-954.46,0.00021917,3]
[349808128,1737438644809,-500.0,0.00021917,3]
[349808129,1737438644818,-500.0,0.00021917,3]
[349808130,1737438644827,-500.0,0.00021917,3]
[349808131,1737438644837,-500.0,0.00021917,3]
[349808132,1737438644847,-1106.91,0.00021917,3]
[349808133,1737438644856,-500.0,0.00021917,3]
[349808134,1737438644865,-500.0,0.00021917,3]
[349808135,1737438644875,-243.92471421,0.00021917,3]
[349808136,1737438644887,-500.0,0.00021917,3]
[349808137,1737438644898,-18406.5227717,0.00021917,3]
[349808138,1737438644913,-2964.4300048,0.00021917,3]
[349808139,1737438644925,-13042.6772235,0.00021917,3]
[349808140,1737438644936,-500.0,0.00021917,3]
[349808141,1737438644946,-1379.12,0.00021917,3]
[349808143,1737438644957,-526.09,0.00021917,3]
[349808144,1737438644967,-500.0,0.00021917,3]
[349808145,1737438644976,-500.99814131,0.00021917,3]
[349808146,1737438644986,-4911.21,0.00021917,3]
[349808147,1737438644996,-500.0,0.00021917,3]
[349808148,1737438645006,-500.0,0.00021917,3]
[349808149,1737438645016,-500.0,0.00021917,3]
[349808150,1737438645026,-500.0,0.00021917,3]
[349808151,1737438645035,-13.55201804,0.00021917,3]
[349808161,1737438646478,-355.4,0.00021917,3]
[349808166,1737439637101,164.215206,0.00013973,2]
[349808189,1737439832679,-511.57603262,0.00017923,2]
[349808191,1737439832689,-511.57603262,0.00018104,2]
[349808193,1737439832699,-511.57603262,0.00019817,2]
[349808195,1737439832708,-2394.0,0.0002,2]
[349808197,1737439832718,-167.647135,0.00020382,2]
[349808199,1737439832728,-262.962442,0.00020656,2]
[349808201,1737439832739,-2500.10189799,0.00020659,2]
[349808203,1737439832749,-300.0,0.00021499,2]
[349808205,1737439832759,-3959.36214147,0.000215,3]
[349808206,1737439832769,-2394.0,0.000216,4]
[349808208,1737439832779,-164.215206,0.00021661,2]
[349808210,1737439832789,-503.31155442,0.000218,2]
[349808212,1737439832798,-1292.67437846,0.00021816,2]
[349808214,1737439832810,-484.03562079,0.00021817,2]
[349808216,1737439832819,-172.80445974,0.00021817,2]
[349808218,1737439832829,-151.0,0.0002184,5]
[349808220,1737439832838,-3000.0,0.000219,2]
[349808222,1737439832847,-962.86,0.000219,2]
[349808224,1737439832859,-390.25489892,0.000219,3]
[349808226,1737439832868,-500.0,0.00021906,7]
[349808227,1737439832878,-169.961,0.00021907,2]
[349808230,1737439832889,-1033.2,0.00021907,3]
[349808231,1737439832900,-516.6,0.00021907,3]
[349808234,1737439832910,-258.3,0.00021907,3]
[349808235,1737439832919,-774.93,0.00021907,3]
[349808237,1737439832928,-591.11287655,0.00021916,2]
[349808239,1737439832938,-500.0,0.00021916,2]
[349808241,1737439832947,-500.0,0.00021916,2]
[349808244,1737439832958,-500.0,0.00021916,2]
[349808246,1737439832968,-176.58071581,0.00021916,2]
[349808247,1737439832978,-500.0,0.00021916,2]
[349808248,1737439832987,-500.0,0.00021916,2]
[349808249,1737439832997,-497.81786661,0.00021916,2]
[349808250,1737439833006,-500.0,0.00021916,2]
[349808251,1737439833016,-500.0,0.00021916,2]
[349808252,1737439833026,-500.0,0.00021916,2]
[349808253,1737439833036,-500.0,0.00021916,2]
[349808254,1737439833046,-500.0,0.00021916,2]
[349808255,1737439833056,-216.1292796,0.00021916,2]
[349808256,1737439833066,-500.0,0.00021916,2]
[349808257,1737439833076,-500.0,0.00021916,2]
[349808258,1737439833086,-500.0,0.00021916,2]
[349808259,1737439833096,-651.91288044,0.00021916,2]
[349808260,1737439833105,-500.0,0.00021916,2]
[349808261,1737439833116,-500.0,0.00021916,2]
[349808262,1737439833126,-457.26000001,0.00021916,2]
[349808263,1737439833136,-500.0,0.00021916,2]
[349808264,1737439833145,-500.0,0.00021916,2]
[349808265,1737439833158,-500.0,0.00021916,2]
[349808266,1737439833168,-500.0,0.00021916,2]
[349808267,1737439833178,-500.0,0.00021916,2]
[349808268,1737439833188,-500.0,0.00021916,2]
[349808269,1737439833198,-500.0,0.00021916,2]
[349808270,1737439833207,-500.0,0.00021916,2]
[349808271,1737439833217,-500.0,0.00021916,2]
[349808272,1737439833227,-500.0,0.00021916,2]
[349808273,1737439833237,-500.0,0.00021916,2]
[349808274,1737439833246,-500.0,0.00021916,2]
[349808275,1737439833255,-500.0,0.00021916,2]
[349808276,1737439833265,-500.0,0.00021916,2]
[349808277,1737439833275,-500.0,0.00021916,2]
[349808278,1737439833284,-500.0,0.00021916,2]
[349808279,1737439833294,-500.0,0.00021916,2]
[349808280,1737439833304,-500.0,0.00021916,2]
[349808281,1737439833314,-500.0,0.00021916,2]
[349808282,1737439833324,-500.0,0.00021916,2]
[349808283,1737439833333,-500.0,0.00021916,2]
[349808284,1737439833343,-500.0,0.00021916,2]
[349808285,1737439833352,-500.0,0.00021916,2]
[349808286,1737439833362,-500.0,0.00021916,2]
[349808287,1737439833372,-500.0,0.00021916,2]
[349808288,1737439833381,-500.0,0.00021916,2]
[349808289,1737439833391,-500.0,0.00021916,2]
[349808290,1737439833402,-500.0,0.00021916,2]
[349808291,1737439833411,-500.0,0.00021916,2]
[349808292,1737439833420,-500.0,0.00021916,2]
[349808293,1737439833430,-500.0,0.00021916,2]
[349808294,1737439833440,-500.0,0.00021916,2]
[349808295,1737439833450,-500.0,0.00021916,2]
[349808296,1737439833460,-500.0,0.00021916,2]
[349808297,1737439833470,-471.82643943,0.00021916,2]
[349808298,1737439833480,-500.0,0.00021916,2]
[349808299,1737439833490,-500.0,0.00021916,2]
[349808300,1737439833500,-500.0,0.00021916,2]
[349808301,1737439833509,-500.0,0.00021916,2]
[349808302,1737439833519,-500.0,0.00021916,2]
[349808303,1737439833529,-500.0,0.00021916,2]
[349808304,1737439833539,-427.92250825,0.00021916,2]
[349808305,1737439833549,-500.0,0.00021916,2]
[349808306,1737439833559,-500.0,0.00021916,2]
[349808307,1737439833569,-500.0,0.00021916,2]
[349808308,1737439833578,-500.0,0.00021916,2]
[349808309,1737439833589,-500.0,0.00021916,2]
[349808310,1737439833599,-500.0,0.00021916,2]
[349808311,1737439833608,-371.76566943,0.00021916,2]
[349808312,1737439833618,-43176.20843537,0.00021917,5]
[349808313,1737439833628,-6874.48693461,0.00021917,5]
[349808314,1737439833637,-500.0,0.00021917,3]
[349808315,1737439833647,-500.0,0.00021917,3]
[349808316,1737439833659,-500.0,0.00021917,3]
[349808317,1737439833668,-595.11,0.00021917,3]
[349808318,1737439833678,-500.0,0.00021917,3]
[349808319,1737439833687,-500.0,0.00021917,3]
[349808320,1737439833697,-500.0,0.00021917,3]
[349808321,1737439833707,-500.0,0.00021917,3]
[349808322,1737439833717,-500.0,0.00021917,3]
[349808323,1737439833726,-500.0,0.00021917,3]
[349808324,1737439833735,-546.44,0.00021917,3]
[349808325,1737439833745,-188.0,0.00021917,2]
[349808326,1737439833754,-500.0,0.00021917,3]
[349808327,1737439833763,-500.0,0.00021917,3]
[349808328,1737439833773,-500.0,0.00021917,3]
[349808329,1737439833782,-500.0,0.00021917,3]
[349808330,1737439833792,-509.52187121,0.00021917,3]
[349808331,1737439833801,-500.0,0.00021917,3]
[349808332,1737439833813,-500.0,0.00021917,3]
[349808333,1737439833822,-500.0,0.00021917,3]
[349808334,1737439833832,-500.0,0.00021917,3]
[349808335,1737439833841,-500.0,0.00021917,3]
[349808336,1737439833853,-500.0,0.00021917,3]
[349808337,1737439833863,-500.0,0.00021917,3]
[349808338,1737439833872,-517.34501381,0.00021917,3]
[349808339,1737439833882,-500.0,0.00021917,3]
[349808340,1737439833893,-500.0,0.00021917,3]
[349808341,1737439833906,-500.0,0.00021917,3]
[349808342,1737439833915,-500.0,0.00021917,3]
[349808343,1737439833925,-500.0,0.00021917,3]
[349808344,1737439833934,-512.90886928,0.00021917,3]
[349808345,1737439833944,-502.08949193,0.00021917,3]
[349808346,1737439833954,-506.58182643,0.00021917,3]
[349808347,1737439833964,-502.10336619,0.00021917,3]
[349808348,1737439833973,-500.0,0.00021917,3]
[349808349,1737439833983,-500.0,0.00021917,3]
[349808350,1737439833993,-507.33086002,0.00021917,3]
[349808351,1737439834003,-675.64,0.00021917,3]
[349808352,1737439834014,-500.0,0.00021917,3]
[349808353,1737439834024,-500.0,0.00021917,3]
[349808354,1737439834034,-321.07219588,0.00021917,3]
[349808355,1737439834044,-504.72404968,0.00021917,3]
[349808356,1737439834054,-500.0,0.00021917,3]
[349808357,1737439834064,-188.37135637,0.00021917,3]
[349808358,1737439834074,-500.0,0.00021917,3]
[349808359,1737439834084,-415.98695486,0.00021917,3]
[349808360,1737439834093,-506.56113599,0.00021917,3]
[349808361,1737439834103,-500.0,0.00021917,3]
[349808362,1737439834112,-500.0,0.00021917,3]
[349808363,1737439834122,-500.0,0.00021917,3]
[349808364,1737439834132,-364.75040147,0.00021917,3]
[349808365,1737439834141,-500.0,0.00021917,3]
[349808366,1737439834154,-500.0,0.00021917,3]
[349808367,1737439834164,-500.0,0.00021917,3]
[349808368,1737439834174,-500.0,0.00021917,3]
[349808369,1737439834184,-500.0,0.00021917,3]
[349808370,1737439834194,-308.99648245,0.00021917,3]
[349808371,1737439834204,-1034.91,0.00021917,3]
[349808372,1737439834213,-500.0,0.00021917,3]
[349808373,1737439834223,-500.0,0.00021917,3]
[349808374,1737439834232,-500.0,0.00021917,3]
[349808375,1737439834242,-509.86454001,0.00021917,3]
[349808376,1737439834251,-500.0,0.00021917,3]
[349808377,1737439834261,-500.0,0.00021917,3]
[349808378,1737439834271,-500.0,0.00021917,3]
[349808379,1737439834280,-500.0,0.00021917,3]
[349808380,1737439834290,-500.0,0.00021917,3]
[349808381,1737439834299,-501.54159678,0.00021917,3]
[349808382,1737439834309,-1045.58,0.00021917,3]
[349808383,1737439834318,-460.97266614,0.00021917,3]
[349808384,1737439834328,-500.0,0.00021917,3]
[349808385,1737439834337,-500.0,0.00021917,3]
[349808386,1737439834346,-500.0,0.00021917,3]
[349808387,1737439834356,-500.0,0.00021917,3]
[349808388,1737439834365,-589.84,0.00021917,3]
[349808389,1737439834375,-502.82934761,0.00021917,3]
[349808390,1737439834384,-500.0,0.00021917,3]
[349808391,1737439834394,-469.58961323,0.00021917,3]
[349808392,1737439834405,-1020.59,0.00021917,3]
[349808393,1737439834414,-169.17797823,0.00021917,3]
[349808394,1737439834424,-500.0,0.00021917,3]
[349808395,1737439834433,-500.0,0.00021917,3]
[349808396,1737439834443,-584.96,0.00021917,3]
[349808397,1737439834452,-500.0,0.00021917,3]
[349808398,1737439834462,-723.28,0.00021917,3]
[349808399,1737439834471,-533.5,0.00021917,3]
[349808400,1737439834480,-500.0,0.00021917,3]
[349808401,1737439834490,-500.0,0.00021917,3]
[349808402,1737439834500,-500.0,0.00021917,3]
[349808403,1737439834509,-500.0,0.00021917,3]
[349808404,1737439834519,-521.14,0.00021917,3]
[349808405,1737439834528,-511.11,0.00021917,3]
[349808406,1737439834537,-311.45946515,0.00021917,3]
[349808407,1737439834547,-500.0,0.00021917,3]
[349808408,1737439834556,-510.29,0.00021917,3]
[349808409,1737439834565,-500.0,0.00021917,3]
[349808410,1737439834575,-500.0,0.00021917,3]
[349808411,1737439834584,-506.43056002,0.00021917,3]
[349808412,1737439834594,-500.0,0.00021917,3]
[349808413,1737439834603,-500.0,0.00021917,3]
[349808414,1737439834613,-500.0,0.00021917,3]
[349808415,1737439834623,-500.0,0.00021917,3]
[349808416,1737439834632,-500.0,0.00021917,3]
[349808417,1737439834642,-500.0,0.00021917,3]
[349808418,1737439834652,-500.0,0.00021917,3]
[349808419,1737439834661,-500.0,0.00021917,3]
[349808420,1737439834670,-500.0,0.00021917,3]
[349808421,1737439834680,-500.0,0.00021917,3]
[349808422,1737439834689,-500.0,0.00021917,3]
[349808423,1737439834699,-500.0,0.00021917,3]
[349808424,1737439834708,-671.64,0.00021917,3]
[349808425,1737439834717,-500.0,0.00021917,3]
[349808426,1737439834727,-500.0,0.00021917,3]
[349808427,1737439834736,-500.0,0.00021917,3]
[349808428,1737439834746,-669.76,0.00021917,3]
[349808429,1737439834755,-500.0,0.00021917,3]
[349808430,1737439834765,-500.0,0.00021917,3]
[349808431,1737439834774,-757.02,0.00021917,3]
[349808432,1737439834784,-500.0,0.00021917,3]